[Event "1st Festival Galdar 2024"]
[Site "Galdar"]
[Date "2024.09.05"]
[Round "5.1"]
[White "Beerdsen, Thomas"]
[Black "Cuenca Jimenez, Jose Fernando"]
[Result "1/2-1/2"]
[Annotator "RC"]
[ECO "C92"]
[WhiteElo "2509"]
[BlackElo "2466"]
[PlyCount "30"]
[EventDate "2024.09.02"]
[EventType "swiss"]
[EventCountry "ESP"]
[SourceTitle "playchess.com"]
[Source "ChessBase"]
[SourceQuality "1"]
[TimeControl "5400+30"]

1. e4 {[%emt 0:00:03]} e5 {[%emt 0:01:17]} 2. Nf3 {[%emt 0:00:17]} Nc6 {[%emt 0:02:43]} 3. Bb5 {[%emt 0:00:20]} a6 {[%emt 0:00:10]} 4. Ba4 {[%emt 0:00:05]} Nf6 {[%emt 0:00:37]} 5. O-O {[%emt 0:00:09]} Be7 {[%emt 0:00:52]} 6. Re1 {[%emt 0:00:11]} b5 {[%emt 0:00:40]} 7. Bb3 {[%emt 0:00:05]} d6 {[%emt 0:00:18]} 8. c3 {[%emt 0:00:29]} O-O {[%emt 0:00:35]} 9. h3 {[%emt 0:00:23]} Bb7 {[%emt 0:00:16]} 10. d4 {[%emt 0:02:22]} Re8 {[%emt 0:00:09]} 11. Ng5 {[%emt 0:04:44]} Rf8 {[%emt 0:00:33]} 12. Nf3 {[%emt 0:00:05]} Re8 {[%emt 0:00:06]} 13. a4 {[%emt 0:00:32]} h6 {[%emt 0:01:19]} 14. Nbd2 {[%emt 0:05:43]} exd4 {[%emt 0:01:01]} 15. cxd4 {[%emt 0:03:26]} Nb4 {[%emt 0:01:51]} 1/2-1/2

[Event "1st Festival Galdar 2024"]
[Site "Galdar"]
[Date "2024.09.05"]
[Round "5.2"]
[White "Sumets, Andrey"]
[Black "Lopez Martinez, Josep Manuel"]
[Result "1/2-1/2"]
[Annotator "TA"]
[ECO "D35"]
[WhiteElo "2517"]
[BlackElo "2448"]
[PlyCount "37"]
[EventDate "2024.09.02"]
[EventType "swiss"]
[EventCountry "ESP"]
[SourceTitle "playchess.com"]
[Source "ChessBase"]
[SourceQuality "1"]
[TimeControl "5400+30"]

{[%evp 18,37,12,0,12,19,33,28,20,19,8,9,23,23,24,15,42,18,22,17,24,17]} 1. d4 {[%emt 0:02:32]} Nf6 {[%emt 0:01:05]} 2. c4 {[%emt 0:00:14]} e6 {[%emt 0:00:15]} 3. Nf3 {[%emt 0:00:06]} d5 {[%emt 0:00:27]} 4. Nc3 {[%emt 0:00:23]} Nbd7 {[%emt 0:00:39]} 5. cxd5 {[%emt 0:01:32]} exd5 {[%emt 0:00:44]} 6. Bf4 {[%emt 0:01:45]} c6 {[%emt 0:01:47]} 7. e3 {[%emt 0:00:11]} Nh5 {[%emt 0:01:00]} 8. Bg5 {[%emt 0:00:22]} Be7 {[%emt 0:00:12]} 9. Bxe7 {[%emt 0:00:25]} Qxe7 {[%emt 0:00:09]} 10. Qc2 {[%emt 0:01:29]} Nhf6 {[%emt 0:03:28]} 11. Bd3 {[%emt 0:00:28]} Nb6 {[%emt 0:03:53]} 12. h3 {[%emt 0:03:10]} g6 {[%emt 0:02:27]} 13. O-O {[%emt 0:02:39]} O-O {[%emt 0:00:32]} 14. a3 {[%emt 0:08:47]} a5 {[%emt 0:04:35]} 15. Rfe1 {[%emt 0:06:33]} Be6 {[%emt 0:05:01]} 16. Ne5 {[%emt 0:04:12]} Rfc8 {[%emt 0:13:20]} 17. Rac1 {[%emt 0:11:28]} Nfd7 {[%emt 0:03:50]} 18. Nxd7 {[%emt 0:03:41]} Nxd7 {[%emt 0:00:14]} 19. Na4 {[%emt 0:01:01] An uneventful encounter.   Weighted Error Value: White=0.06 (flawless) /Black=0.09 (flawless) .  Inaccurate:     	---       	Black=1      OK:         	White=4     	Black=1} 1/2-1/2

[Event "1st Festival Galdar 2024"]
[Site "Galdar"]
[Date "2024.09.05"]
[Round "5.3"]
[White "Kurajica, Bojan"]
[Black "Stefansson, Vignir Vatnar"]
[Result "0-1"]
[Annotator "TA"]
[ECO "A81"]
[WhiteElo "2409"]
[BlackElo "2531"]
[PlyCount "92"]
[EventDate "2024.09.02"]
[EventType "swiss"]
[EventCountry "ESP"]
[SourceTitle "playchess.com"]
[Source "ChessBase"]
[SourceQuality "1"]
[TimeControl "5400+30"]

{[%evp 9,92,18,31,18,27,21,38,39,31,28,50,47,54,64,60,0,-12,0,0,0,24,-31,0,-6,0,-14,0,-18,8,-160,-152,-168,-152,-160,-147,-133,-157,-162,-145,-168,-168,-161,-174,-174,-166,-173,-147,-196,-192,-204,-204,-201,-184,-189,-218,-211,-195,-214,-153,-243,-243,-234,-238,-464,-268,-309,-307,-474,-476,-489,-484,-466,-498,-520,-489,-712,-508,-933,-929,-915,-645,-943,-879,-5081,-4133]} 1. d4 {[%emt 0:00:02]} f5 {[%emt 0:00:16]} 2. g3 {[%emt 0:00:14]} Nf6 {[%emt 0:00:07]} 3. Bg2 {[%emt 0:00:07]} g6 {[%emt 0:00:06]} 4. Nc3 {[%emt 0:01:42]} Bg7 {[%emt 0:01:23]} 5. Bg5 {[%emt 0:01:02]} O-O {[%emt 0:03:56]} 6. Qd2 {[%emt 0:01:05]} d6 {[%emt 0:02:05]} 7. O-O-O {[%emt 0:11:15]} c6 {[%emt 0:08:25]} 8. h4 {[%emt 0:11:39] White is slightly better.} Nbd7 {[%emt 0:02:31]} 9. Nh3 {[%emt 0:04:21] With the idea Nf4.} Qe8 {[%emt 0:03:37]} 10. Bh6 {[%emt 0:05:14]} d5 {[%emt 0:08:28]} 11. Bxg7 {[%emt 0:00:12]} Kxg7 {[%emt 0:00:05]} 12. f3 {[%emt 0:11:06]} (12. h5 $14) 12... e5 $11 {[%emt 0:03:16]} 13. dxe5 {[%emt 0:06:09]} Qxe5 {[%emt 0:00:22]} 14. Nf4 {[%emt 0:02:30]} Re8 {[%emt 0:04:42]} (14... Nb6 $5) 15. Rde1 {[%emt 0:12:48]} ({White should try} 15. e4 $1 $11 fxe4 16. fxe4 dxe4 17. Nxe4 Nxe4 18. Bxe4) 15... Nb6 {[%emt 0:09:14]} 16. b3 $1 {[%emt 0:00:57] Against Nc4} d4 {[%emt 0:01:31]} 17. Nd1 {[%emt 0:00:27]} a5 {[%emt 0:02:29]} 18. a4 {[%emt 0:08:45]} c5 {[%emt 0:04:10] Threatens to win with ...c4.} (18... Nbd5 {simplifies} 19. Nxd5 Qxd5 20. e3 dxe3 21. Rxe3 Qxd2+ 22. Kxd2 Rd8+) 19. c4 $2 {[%emt 0:03:03] Black continues to play with concentration.} (19. h5 $1 $11) 19... dxc3 $1 $17 {[%emt 0:01:34]} 20. Qxc3 {[%emt 0:00:05] [#]} c4 $1 {[%emt 0:04:17][%mdl 512]} 21. bxc4 {[%emt 0:01:12]} Bd7 $1 {[%emt 0:01:23] Black is more active.} (21... Nxa4 22. Qxe5 Rxe5 23. Kb1) 22. Qxe5 {[%emt 0:00:33]} Rxe5 {[%emt 0:00:04]} 23. Nb2 {[%emt 0:03:49]} Rc8 {[%emt 0:02:15]} ({Don't play} 23... Bxa4 $6 24. Nfd3 Re7 25. c5 $17) (23... Nxa4 24. Nbd3 Re7 25. e4 $17) 24. Nfd3 {[%emt 0:01:01]} Re7 {[%emt 0:00:13]} 25. c5 {[%emt 0:04:39]} Nxa4 {[%emt 0:01:35]} ({Worse is} 25... Bxa4 26. Kb1 $11) 26. Nxa4 {[%emt 0:00:06]} Bxa4 {[%emt 0:00:03]} 27. Kd2 {[%emt 0:00:03]} Bb5 {[%emt 0:00:30]} 28. Rc1 {[%emt 0:01:41]} (28. g4 $17) 28... Nd7 {[%emt 0:03:16][%cal Od7c5]} 29. Rc3 {[%emt 0:03:12]} Bxd3 {[%emt 0:00:46]} 30. exd3 {[%emt 0:00:12]} Nxc5 {[%emt 0:03:05]} (30... Rxc5 31. Rb1 $11) 31. d4 {[%emt 0:03:25]} Rd7 {[%emt 0:01:08]} 32. Ke3 {[%emt 0:00:07] [#]} Re8+ $1 {[%emt 0:00:26]} 33. Kf2 {[%emt 0:00:05]} Ne6 {[%emt 0:01:37]} 34. Ra1 {[%emt 0:02:59]} (34. Re1 $17 {keeps fighting.}) 34... Nxd4 $19 {[%emt 0:01:03]} 35. Rxa5 {[%emt 0:00:12]} Re2+ {[%emt 0:00:05]} 36. Kf1 $2 {[%emt 0:00:53]} (36. Kg1) 36... Rb2 {[%emt 0:01:10]} (36... Rde7 $142 {( -> ...Re1+)} 37. Ra1 Rd2) 37. Rd3 {[%emt 0:01:10] [#]} Rc7 $1 {[%emt 0:00:20]} 38. Ra1 {[%emt 0:00:28] Prevents Rc1+} (38. Re5 $142 Rcc2 (38... Rc1+ 39. Re1 $17) 39. Rxd4) 38... Rcc2 {[%emt 0:00:40] Black is clearly winning.} 39. Bh1 {[%emt 0:00:30]} Ne2 {[%emt 0:06:14]} 40. f4 {[%emt 0:00:16]} b5 {[%emt 0:01:07]} 41. Re3 {[%emt 0:00:55]} b4 {[%emt 0:00:17]} 42. Bd5 {[%emt 0:00:18]} (42. h5 $142) 42... Kh6 {[%emt 0:01:02] And now ...Nc3 would win.} 43. Re1 {[%emt 0:00:26]} (43. Rb3 $142) 43... Nc3 {[%emt 0:00:33]} 44. Bf3 {[%emt 0:00:25]} Ne4 {[%emt 0:01:34]} 45. Be2 {[%emt 0:00:48]} b3 {[%emt 0:01:13] Hoping for ...Ra2.} 46. g4 {[%emt 0:00:20] [#]} Rxe2 $1 {[%emt 0:00:51][%mdl 512] Weighted Error Value: White=0.70/Black=0.22 (precise) .  Mistake:       	White=9     	Black=1      Inaccurate:     	---       	Black=1      OK:         	White=9     	Black=12     Best:        	White=2     	Black=3      Strong:       	White=1     	Black=4} 0-1

[Event "1st Festival Galdar 2024"]
[Site "Galdar"]
[Date "2024.09.05"]
[Round "5.4"]
[White "Movsziszian, Karen"]
[Black "Mamani Beltran, Deniman"]
[Result "1-0"]
[Annotator "TA"]
[ECO "C00"]
[WhiteElo "2444"]
[BlackElo "2229"]
[PlyCount "101"]
[EventDate "2024.09.02"]
[EventType "swiss"]
[EventCountry "ESP"]
[SourceTitle "playchess.com"]
[Source "ChessBase"]
[SourceQuality "1"]
[TimeControl "5400+30"]

{[%evp 18,101,31,12,50,0,0,-10,-20,-70,-24,-44,-30,-12,55,46,54,53,52,50,55,32,58,46,64,74,66,57,61,63,62,51,43,21,97,25,40,45,32,-28,-39,-25,13,0,53,39,72,38,35,43,54,51,44,39,69,63,97,87,131,120,108,102,160,182,179,185,194,188,241,246,344,345,371,353,441,460,387,134,388,407,433,298,299,291,288,223]} 1. g3 {[%emt 0:00:01]} Nf6 {[%emt 0:00:10]} 2. Bg2 {[%emt 0:00:08]} d5 {[%emt 0:00:17]} 3. Nf3 {[%emt 0:00:34]} e6 {[%emt 0:00:20]} 4. O-O {[%emt 0:00:51]} Be7 {[%emt 0:00:19]} 5. d3 {[%emt 0:01:34]} O-O {[%emt 0:01:11]} 6. Nbd2 {[%emt 0:02:15]} c5 {[%emt 0:01:23]} 7. e4 {[%emt 0:00:01]} Nc6 {[%emt 0:01:03]} 8. Re1 {[%emt 0:00:02]} dxe4 {[%emt 0:00:38]} 9. dxe4 {[%emt 0:00:02]} e5 {[%emt 0:00:09]} 10. c3 {[%emt 0:00:14]} a6 {[%emt 0:05:27]} 11. a4 {[%emt 0:03:29]} (11. Nc4 $14) 11... Qc7 {[%emt 0:01:48]} 12. Qe2 {[%emt 0:11:43]} Na5 {[%emt 0:05:17] The position is equal.} 13. Bf1 {[%emt 0:11:05]} (13. Nc4 $11 Nxc4 14. Qxc4) 13... Bd7 {[%emt 0:05:52]} (13... Be6 $15) 14. b3 {[%emt 0:07:52][%cal Bb2b3,Bb3b4,Bb4b5][%mdl 32]} Rfb8 {[%emt 0:21:22]} 15. Bb2 {[%emt 0:01:34][%cal Ob3b4]} Be6 {[%emt 0:01:44] [#]} (15... Re8 $11) 16. b4 $1 $14 {[%emt 0:02:31]} Nc6 {[%emt 0:00:55]} 17. b5 {[%emt 0:01:30]} Na5 {[%emt 0:01:06]} 18. c4 {[%emt 0:02:12]} Nd7 {[%emt 0:00:51]} 19. Bc3 {[%emt 0:02:17]} b6 {[%emt 0:00:39]} 20. h4 {[%emt 0:04:17]} f6 {[%emt 0:02:36]} 21. Nh2 {[%emt 0:01:35][%cal Bf3h2,Bh2g4,Bg4e3,Be3d5][%mdl 32]} Nb7 {[%emt 0:08:35]} 22. Ng4 {[%emt 0:03:32]} Ra7 {[%emt 0:01:58]} 23. Ne3 {[%emt 0:01:09]} Rba8 {[%emt 0:00:34]} 24. Kh2 {[%emt 0:02:29]} Nf8 {[%emt 0:05:44][%cal Bd7f8,Bf8e6,Be6d4][%mdl 32]} 25. Bh3 {[%emt 0:02:25]} Bf7 {[%emt 0:02:26]} (25... Qd7 $11 26. Bf1 axb5) 26. h5 {[%emt 0:02:49]} (26. Nd5 $16 Bxd5 27. exd5) 26... Ne6 {[%emt 0:02:49]} 27. Nd5 {[%emt 0:00:45]} Qd8 {[%emt 0:00:07]} 28. Reb1 {[%emt 0:22:26]} ({White should try} 28. Bxe6 $14 Bxe6 29. h6) 28... Nd4 $11 {[%emt 0:08:37]} 29. Qd1 {[%emt 0:00:01]} a5 {[%emt 0:03:31]} 30. Bg4 {[%emt 0:00:13]} Qd6 {[%emt 0:00:39]} ({Better is} 30... Nd6 $11) 31. Qf1 {[%emt 0:00:13]} Nd8 {[%emt 0:03:45]} 32. Qg2 {[%emt 0:00:38][%cal Oh5h6]} (32. Bxd4 {seems wilder.} cxd4 33. c5 bxc5 34. Nc4) 32... N8e6 {[%emt 0:02:02]} 33. Rf1 {[%emt 0:00:01]} Bd8 {[%emt 0:00:26]} 34. Rae1 {[%emt 0:00:53]} Nc2 {[%emt 0:01:19]} 35. Rc1 {[%emt 0:00:03]} Ncd4 {[%emt 0:00:04]} 36. Kh1 {[%emt 0:00:03]} Bc7 {[%emt 0:04:09] [#]} 37. h6 $1 {[%emt 0:00:09]} Bd8 {[%emt 0:00:46]} (37... Re8 38. f4) 38. hxg7 {[%emt 0:00:07]} h5 {[%emt 0:00:24]} 39. Bh3 {[%emt 0:02:39] White is much more active.} Kxg7 {[%emt 0:01:10]} ({Black should play} 39... Ne2) 40. f4 $36 {[%emt 0:00:12][%mdl 2048] White is in control.} Be7 {[%emt 0:00:06]} 41. Rf2 {[%emt 0:01:37]} Rg8 {[%emt 0:00:44][%cal Ba8g8,Bg8g7,Bg7g3][%mdl 32]} 42. Rcf1 {[%emt 0:00:36] And now fxe5 would win.} Kh8 {[%emt 0:01:11]} (42... Be8 {was worth a try.} 43. Bf5 Bf7) 43. Qh2 $18 {[%emt 0:00:11]} Bd8 {[%emt 0:00:38]} 44. fxe5 {[%emt 0:03:38]} Qxe5 {[%emt 0:00:05]} 45. Nxf6 {[%emt 0:00:28]} Rg7 {[%emt 0:02:28]} 46. Nf3 {[%emt 0:03:29] Prevents Ng5} Qxg3 {[%emt 0:03:03]} 47. Bxe6 $2 {[%emt 0:01:23]} (47. Nxh5 $18 {and the rest is easy.} Bxh5 (47... Qxh2+ $2 48. Rxh2 Bxh5 49. Bxe6 $18) 48. Bxe6) 47... Bxf6 $4 {[%emt 0:01:11][%mdl 8192] Black cannot hold the game after this.} (47... Qxh2+ $16 48. Rxh2 Bxf6) 48. Qxg3 {[%emt 0:03:20]} Rxg3 {[%emt 0:00:08]} 49. Bxd4 {[%emt 0:00:03]} cxd4 {[%emt 0:00:43] [#]} 50. Bxf7 {[%emt 0:00:02]} Rxf7 {[%emt 0:00:34]} 51. Nh2 {[%emt 0:01:03] Weighted Error Value: White=0.27 (precise) /Black=0.40.  Loses game:     	---       	Black=1      Missed win:     	White=1     	---        Mistake:       	White=4     	Black=6      Inaccurate:     	White=2     	Black=7      OK:         	White=14    	Black=10     Best:        	White=2     	---        Brilliant:      	White=1     	---} 1-0

[Event "1st Festival Galdar 2024"]
[Site "Galdar"]
[Date "2024.09.05"]
[Round "5.5"]
[White "Del Rio De Angelis, Salvador G."]
[Black "Koelle, Tobias"]
[Result "1/2-1/2"]
[Annotator "RC"]
[ECO "E48"]
[WhiteElo "2376"]
[BlackElo "2433"]
[PlyCount "35"]
[EventDate "2024.09.02"]
[EventType "swiss"]
[EventCountry "ESP"]
[SourceTitle "playchess.com"]
[Source "ChessBase"]
[SourceQuality "1"]
[TimeControl "5400+30"]

1. d4 {[%emt 0:00:09]} Nf6 {[%emt 0:00:10]} 2. c4 {[%emt 0:00:10]} e6 {[%emt 0:00:11]} 3. Nc3 {[%emt 0:00:13]} Bb4 {[%emt 0:00:10]} 4. e3 {[%emt 0:00:12]} O-O {[%emt 0:00:09]} 5. Bd3 {[%emt 0:00:13]} d5 {[%emt 0:00:12]} 6. cxd5 {[%emt 0:00:12]} exd5 {[%emt 0:00:10]} 7. Nge2 {[%emt 0:00:11]} Re8 {[%emt 0:00:30]} 8. O-O {[%emt 0:00:08]} Bd6 {[%emt 0:00:11]} 9. b3 {[%emt 0:00:16]} c6 {[%emt 0:03:14]} 10. Qc2 {[%emt 0:00:07]} Nbd7 {[%emt 0:02:02]} 11. Ng3 {[%emt 0:00:10]} Nf8 {[%emt 0:02:14]} 12. f3 {[%emt 0:00:07]} Ne6 {[%emt 0:03:47]} 13. Qf2 {[%emt 0:03:05]} c5 {[%emt 0:05:11]} 14. Nce2 {[%emt 0:00:19]} cxd4 {[%emt 0:09:27]} 15. exd4 {[%emt 0:00:48]} Qc7 {[%emt 0:08:43]} 16. Bd2 {[%emt 0:07:06]} Nf4 {[%emt 0:03:23]} 17. Nxf4 {[%emt 0:17:57]} Bxf4 {[%emt 0:00:18]} 18. Rac1 {[%emt 0:10:10]} 1/2-1/2

[Event "1st Festival Galdar 2024"]
[Site "Galdar"]
[Date "2024.09.05"]
[Round "5.7"]
[White "Domalchuk-Jonasson, Aleksandr"]
[Black "Arizmendi Martinez, Julen Luis"]
[Result "1/2-1/2"]
[Annotator "TA"]
[ECO "E06"]
[WhiteElo "2366"]
[BlackElo "2517"]
[PlyCount "65"]
[EventDate "2024.09.02"]
[EventType "swiss"]
[EventCountry "ESP"]
[SourceTitle "playchess.com"]
[Source "ChessBase"]
[SourceQuality "1"]
[TimeControl "5400+30"]

{[%evp 17,65,8,13,20,19,-8,18,5,31,36,27,18,53,48,52,52,52,45,39,17,14,0,19,30,22,25,35,3,31,36,24,28,26,0,29,23,59,15,29,19,29,37,47,48,43,43,40,0,0,0]} 1. d4 {[%emt 0:00:04]} d5 {[%emt 0:00:30]} 2. c4 {[%emt 0:00:12]} e6 {[%emt 0:00:05]} 3. Nf3 {[%emt 0:00:20]} Nf6 {[%emt 0:02:56]} 4. g3 {[%emt 0:00:45]} Be7 {[%emt 0:04:27]} 5. Bg2 {[%emt 0:00:15]} O-O {[%emt 0:00:21]} 6. O-O {[%emt 0:02:06]} c6 {[%emt 0:00:56]} 7. Qc2 {[%emt 0:00:43]} b6 {[%emt 0:00:51]} 8. Nbd2 {[%emt 0:01:00]} Bb7 {[%emt 0:00:36]} 9. e4 {[%emt 0:00:37]} Na6 {[%emt 0:00:14][%cal Bb8a6,Ba6c5,Bc5d7,Bd7b6][%mdl 32]} 10. a3 {[%emt 0:00:05]} c5 {[%emt 0:00:42]} 11. e5 {[%emt 0:05:56]} Ne4 {[%emt 0:14:12]} 12. dxc5 {[%emt 0:12:37][%cal Oc5c6]} Naxc5 {[%emt 0:02:18]} 13. b4 {[%emt 0:02:41]} Nxd2 {[%emt 0:17:52]} 14. Nxd2 {[%emt 0:01:24] [#] aiming for cxd5.} Nd7 {[%emt 0:01:05]} 15. cxd5 {[%emt 0:04:33]} Bxd5 {[%emt 0:02:26]} 16. Bxd5 {[%emt 0:00:24]} exd5 {[%emt 0:00:19]} 17. Bb2 {[%emt 0:00:47]} a5 {[%emt 0:02:56]} 18. Qb3 {[%emt 0:01:36]} (18. Qf5 {looks sharper.} axb4 19. axb4 Rxa1 20. Rxa1 Bxb4 21. e6) 18... b5 {[%emt 0:07:27]} 19. Qxd5 {[%emt 0:46:05] [#] And now Ne4 would win.} Nb6 {[%emt 0:08:14]} (19... Nc5 $5 20. Qxd8 Rfxd8 $15) 20. Qd4 {[%emt 0:04:29]} (20. Qxb5 $2 Qxd2 21. Bc1 Qd8 22. bxa5 Nc8 $19) 20... axb4 {[%emt 0:11:51]} 21. axb4 {[%emt 0:00:07]} Na4 {[%emt 0:03:59]} 22. Ne4 {[%emt 0:01:34]} Rc8 {[%emt 0:10:11]} 23. Rac1 {[%emt 0:07:58] Prevents Rc4.} Nxb2 {[%emt 0:05:44]} 24. Qxb2 {[%emt 0:00:04]} Qd5 {[%emt 0:00:07]} 25. f3 {[%emt 0:02:43]} Rfd8 {[%emt 0:01:21]} 26. Kg2 {[%emt 0:00:54]} h6 {[%emt 0:01:04]} 27. h4 {[%emt 0:01:55][%cal Of1d1]} (27. Rfd1 {keeps more tension.} Qxd1 28. Rxd1 Rxd1 29. e6) 27... Rc4 {[%emt 0:00:37]} 28. Rxc4 {[%emt 0:00:27]} (28. Rfd1 {is interesting.} Qxd1 29. Rxd1 Rxd1 30. Qa2) 28... Qxc4 {[%emt 0:00:03]} 29. Rc1 {[%emt 0:00:58]} Qxb4 {[%emt 0:00:48]} 30. Qxb4 {[%emt 0:00:04]} Bxb4 {[%emt 0:00:02]} 31. Rb1 {[%emt 0:00:14]} Rd4 {[%emt 0:00:28]} 32. Nd6 {[%emt 0:02:06]} Bxd6 {[%emt 0:00:44]} 33. exd6 {[%emt 0:00:04] Weighted Error Value: White=0.13 (very precise) /Black=0.11 (very precise) .  Inaccurate:     	White=5     	Black=6      OK:         	White=6     	Black=8      Best:        	White=1     	Black=1} 1/2-1/2

[Event "1st Festival Galdar 2024"]
[Site "Galdar"]
[Date "2024.09.05"]
[Round "5.8"]
[White "Ragnarsson, Dagur"]
[Black "Zwirs, Nico"]
[Result "1/2-1/2"]
[Annotator "TA"]
[ECO "A07"]
[WhiteElo "2332"]
[BlackElo "2485"]
[PlyCount "65"]
[EventDate "2024.09.02"]
[EventType "swiss"]
[EventCountry "ESP"]
[SourceTitle "playchess.com"]
[Source "ChessBase"]
[SourceQuality "1"]
[TimeControl "5400+30"]

{[%evp 9,65,0,5,0,0,1,13,0,29,25,32,21,30,8,18,7,25,-5,0,-10,18,0,15,0,7,5,0,0,-8,-8,0,-32,-33,-27,-39,-29,8,6,5,6,14,0,19,22,35,0,0,0,4,0,28,22,25,0,33,0,22,0]} 1. Nf3 {[%emt 0:00:03]} d5 {[%emt 0:00:06]} 2. g3 {[%emt 0:00:06]} c6 {[%emt 0:00:18]} 3. Bg2 {[%emt 0:00:12]} Bg4 {[%emt 0:00:16]} 4. h3 {[%emt 0:00:20]} Bxf3 {[%emt 0:03:50]} 5. Bxf3 {[%emt 0:00:10]} Nd7 {[%emt 0:00:26]} 6. d3 {[%emt 0:02:31]} Ngf6 {[%emt 0:02:11]} 7. O-O {[%emt 0:01:11]} e5 {[%emt 0:00:32]} 8. e4 {[%emt 0:00:08]} dxe4 {[%emt 0:00:14]} 9. dxe4 {[%emt 0:00:06]} Bc5 {[%emt 0:00:51]} 10. Nd2 {[%emt 0:04:04][%cal Bb1d2,Bd2c4,Bc4e3,Be3c2,Bc2a3][%mdl 32]} O-O {[%emt 0:02:36]} 11. Nc4 {[%emt 0:01:37]} Qe7 {[%emt 0:03:32]} 12. Qe2 {[%emt 0:03:14]} Rfd8 {[%emt 0:08:11]} 13. Bg2 {[%emt 0:02:50]} Nb6 {[%emt 0:05:26]} 14. Ne3 {[%emt 0:05:12]} g6 {[%emt 0:04:45]} 15. Kh2 {[%emt 0:11:34]} h5 {[%emt 0:01:17]} 16. c3 {[%emt 0:03:05]} Qe6 {[%emt 0:08:49]} 17. b3 {[%emt 0:05:06]} a5 {[%emt 0:02:02][%cal Ba7a5,Ba5a4][%mdl 32]} 18. Nc2 {[%emt 0:04:16]} a4 {[%emt 0:05:47]} 19. b4 {[%emt 0:00:07]} Be7 {[%emt 0:00:34]} 20. Na3 {[%emt 0:00:45] Prevents Qc4.} c5 {[%emt 0:05:19]} 21. Be3 {[%emt 0:01:01]} cxb4 {[%emt 0:06:59]} 22. cxb4 {[%emt 0:00:27]} Bxb4 {[%emt 0:06:11]} 23. Rab1 {[%emt 0:00:29]} Bxa3 {[%emt 0:01:04]} 24. Rxb6 {[%emt 0:00:07]} Rd6 {[%emt 0:00:54]} 25. Rfb1 {[%emt 0:04:16]} Rc6 {[%emt 0:02:45]} 26. Rxb7 {[%emt 0:00:34]} Bf8 {[%emt 0:07:36]} 27. Rb8 {[%emt 0:04:06]} Rxb8 {[%emt 0:01:44]} 28. Rxb8 {[%emt 0:00:06]} Kg7 {[%emt 0:03:18]} 29. Qd2 {[%emt 0:11:51] [#] Bh6+ would now be deadly.} Rc8 {[%emt 0:02:09]} 30. Rb6 {[%emt 0:01:57]} Rc6 {[%emt 0:00:09]} 31. Rb8 {[%emt 0:08:45] aiming for Bh6+.} Rc8 {[%emt 0:01:43]} 32. Rb6 {[%emt 0:08:56]} Rc6 $1 {[%emt 0:00:05]} 33. Rb8 {[%emt 0:01:37] Weighted Error Value: White=0.10 (very precise) /Black=0.08 (flawless) .  Inaccurate:     	White=3     	Black=4      OK:         	White=9     	Black=15     Strong:       	---       	Black=1} 1/2-1/2

[Event "1st Festival Galdar 2024"]
[Site "Galdar"]
[Date "2024.09.05"]
[Round "5.9"]
[White "Fromm, Marius"]
[Black "Fiorito, Fabian"]
[Result "1/2-1/2"]
[Annotator "TA"]
[ECO "B30"]
[WhiteElo "2477"]
[BlackElo "2285"]
[PlyCount "32"]
[EventDate "2024.09.02"]
[EventType "swiss"]
[EventCountry "ESP"]
[SourceTitle "playchess.com"]
[Source "ChessBase"]
[SourceQuality "1"]
[TimeControl "5400+30"]

{[%evp 9,32,24,35,18,14,17,27,25,34,0,4,0,31,27,39,21,20,19,31,13,21,20,23,0,18]} 1. e4 {[%emt 0:00:03]} c5 {[%emt 0:00:21]} 2. Nf3 {[%emt 0:00:04]} Nc6 {[%emt 0:00:11]} 3. Bb5 {[%emt 0:00:05]} Nf6 {[%emt 0:01:26]} 4. Bxc6 {[%emt 0:03:19]} dxc6 {[%emt 0:00:33]} 5. d3 {[%emt 0:00:20]} Qc7 {[%emt 0:01:16]} 6. b3 {[%emt 0:01:23]} e5 {[%emt 0:01:38]} 7. Bb2 {[%emt 0:00:43]} Bd6 {[%emt 0:02:00]} 8. Nbd2 {[%emt 0:01:08] White has an edge.} Be6 {[%emt 0:00:45]} 9. Nc4 {[%emt 0:04:04]} Bxc4 {[%emt 0:00:57]} 10. bxc4 {[%emt 0:00:05]} O-O-O {[%emt 0:03:49]} 11. O-O {[%emt 0:04:33]} g6 {[%emt 0:02:42]} 12. a4 {[%emt 0:09:11]} Nh5 {[%emt 0:02:00][%cal Bf6h5,Bh5f4,Bf4h3][%mdl 32]} 13. Bc3 {[%emt 0:07:24]} f6 {[%emt 0:02:07]} 14. Rb1 {[%emt 0:01:10]} Nf4 {[%emt 0:00:48]} 15. Rb3 {[%emt 0:15:51]} Qd7 {[%emt 0:04:10]} 16. g3 {[%emt 0:05:11]} Nh3+ {[%emt 0:04:59] Weighted Error Value: White=0.12 (very precise) /Black=0.08 (flawless) .  Inaccurate:     	White=1     	Black=1      OK:         	---       	Black=3      Best:        	---       	Black=1} 1/2-1/2